Cogmind - Beta 12 @@@ ROGUE MODE // 2023.10.25 @ 15:37:33 Player: FrostySpirit Result: Destroyed by P-60 Hacker with Shock Rifle Performance ------------- Evolutions (4) 2000 Regions Visited (8) 1600 Robots Destroyed (80) 400 Value Destroyed (2944) 2944 Prototype IDs (7) 140 Alien Tech Used (0) 0 Bonus (941) 941 TOTAL SCORE: 8025 Bonus ------- High Alert Combat Kills 241 Entered Garrisons 200 Used RIF Installer 500 Cogmind --------- Core Integrity 0/850 Matter 288/300 Energy 100/100 System Corruption 23% Temperature Cool (0) Movement Core (150) Ox2 Location -6/Lower Caves Parts ------- > --- POWER (2) -------- (None) > --- PROPULSION (3) --- (None) > --- UTILITY (8) ------ Scrap Engine Improved Targeting Computer Field Recycling Unit > --- WEAPON (2) ------- (None) > --- INVENTORY (5) ---- Targeting Computer Improved Medium Armor Plating Authchip [R/Combat] Peak State ------------ > --- POWER ------------ Cold Fusion Reactor Cold Fusion Reactor > --- PROPULSION ------- Wheeled Compact Exoskeleton Backup Propulsion I > --- UTILITY ---------- Scrap Engine Large Storage Unit Targeting Computer Improved Targeting Computer Improved Targeting Computer Recoil Stabilizer Utility Shielding > --- WEAPON ----------- Advanced Beam Rifle Enhanced Autogun > --- INVENTORY -------- Advanced Weight Redist. System Targeting Computer Targeting Computer Advanced ECM Suite Propulsion Shielding Force Field Authchip [R/NC] Authchip [R/Combat] Authchip [R/Combat] Relay Coupler [Swarmer] Field Recycling Unit [Rating: 52] Favorites ----------- Power Improved Ion Engine Engine Improved Ion Engine Power Core Light Nuclear Core Reactor Cold Fusion Reactor Propulsion Improved Treads Treads Improved Treads Leg Aluminum Leg Wheel Constructs Hover Unit Backup Propulsion I Flight Unit Nuclear Pulse Thruster Utility Improved Targeting Computer Device Improved Heat Sink Storage Large Storage Unit Processor Improved Targeting Computer Protection Core Shielding Weapon Advanced Beam Rifle Energy Gun Advanced Beam Rifle Energy Cannon Ion Cannon Ballistic Gun Enhanced Autogun Ballistic Cannon Light Cannon Special Weapon Plasma Cutter Build | -11 -10 -9 -8 -8 -8 -8 -6 -6 ------- Run | Jun Mat Mat Mat Sto Gar Rec Fac Low Slots Evolved 8 | . . 2 2 . . . 4 . Power 1 | . . . . . . . 1 . Propulsion 1 | . . . . . . . 1 . Utility 6 | . . 2 2 . . . 2 . Weapon . | . . . . . . . . . Parts Attached 78 | 5 9 23 14 2 6 3 9 7 Power 12 | 1 1 3 2 . 2 . 2 1 Engine 7 | 1 1 3 2 . . . . . Core 3 | . . . . . 2 . . 1 Reactor 2 | . . . . . . . 2 . Propulsion 18 | 2 3 4 4 . 2 2 . 1 Treads 12 | . 2 4 4 . . 2 . . Leg 5 | 2 1 . . . 2 . . . Wheel . | . . . . . . . . . Hover . | . . . . . . . . . Flight 1 | . . . . . . . . 1 Utility 27 | 1 2 9 4 . 2 1 3 5 Device 13 | . . 5 1 . 1 1 2 3 Storage 7 | 1 2 2 . . 1 . . 1 Processor 3 | . . . 3 . . . . . Hackware . | . . . . . . . . . Protection 4 | . . 2 . . . . 1 1 Artifact . | . . . . . . . . . Weapon 21 | 1 3 7 4 2 . . 4 . Energy Gun 2 | 1 . . . 1 . . . . Energy Cannon 2 | . . 1 1 . . . . . Ballistic Gun 12 | . 3 5 3 1 . . . . Ballistic Cannon 1 | . . 1 . . . . . . Launcher . | . . . . . . . . . Special Weapon 4 | . . . . . . . 4 . Impact Weapon . | . . . . . . . . . Slashing Weapon . | . . . . . . . . . Piercing Weapon . | . . . . . . . . . Special Melee Weapon . | . . . . . . . . . Unidentified Prototypes 5 | . . 1 1 2 . . 1 . Corrupted Parts 2 | . . . . . . . 2 . System Corruption 18 | . . . . . . . 18 . Parts Lost 31 | . . 6 4 . 1 . 16 4 Power 7 | . . 1 1 . 1 . 3 1 Propulsion 6 | . . 2 2 . . . 2 . Utility 8 | . . . . . . . 5 3 Weapon 10 | . . 3 1 . . . 6 . Highest Loss Streak 17 | . . 4 2 . 1 . 16 17 To Critical Strikes 1 | . . . . . . . 1 . Average Slot Usage (%) 91 | . 98 96 99 100 99 90 63 32 Engine 6 | . 14 9 8 9 1 . 1 . Core 2 | . . . . . 7 9 . 3 Treads 14 | . 15 21 17 18 13 16 . . Leg 2 | . 12 . . . 3 1 . . Device 8 | . . 11 9 9 9 9 12 17 Storage 16 | . 26 21 18 18 18 9 4 . Processor 16 | . . . 24 27 27 27 17 6 Protection 2 | . . 10 2 . . . 3 . Energy Gun 4 | . 6 . . 4 9 9 3 . Ballistic Gun 13 | . 21 20 15 6 9 9 3 . Naked Turns . | . . . . . . . . . Heaviest Build 52 | 12 37 40 41 41 37 35 52 15 Greatest Support 46 | 20 46 46 43 43 43 40 40 15 Greatest Overweight (x) 13 | 1 . 1 1 . 11 1 13 4 Average Overweight (x) . | . . . . . . . 1 . Largest Inventory Capacity 15 | 8 15 15 15 15 15 15 15 10 Average Capacity 13 | 6 11 15 15 15 15 15 12 5 Most Carried 15 | 5 13 15 15 13 15 15 15 5 Average Carried 12 | 2 9 13 14 13 14 14 10 3 Final Capacity 15 | 8 15 15 15 15 15 15 5 5 Final Carried 15 | 5 13 15 13 13 15 15 4 3 Scrap Engine Consumption 16 | . . . . . . 6 10 . Constructs Created 3 | . . . . . . . 3 . Class Distribution -------------------- 85% | Mutant 14% | Scavenger-Mutant Dominant Class ---------------- Mutant | -10/Materials Mutant | -9/Materials Mutant | -8/Materials Mutant | -8/Storage Mutant | -8/Garrison Mutant | -8/Recycling Mutant | -6/Factory Mutant | -6/Lower Caves Resources | -11 -10 -9 -8 -8 -8 -8 -6 -6 ----------- Run | Jun Mat Mat Mat Sto Gar Rec Fac Low Matter Collected 2340 | 206 186 740 723 39 276 58 . 112 Remotely . | . . . . . . . . . Salvage Created 2981 | . 169 748 785 109 988 182 . . Parts 185 | . 11 36 59 5 64 10 . . Haulers Intercepted . | . . . . . . . . . Recyclers Shooed 1 | . . . . . . . 1 . Parts Field Recycled . | . . . . . . . . . Retrieved Matter . | . . . . . . . . . Parts Self-Destructed . | . . . . . . . . . Prevented . | . . . . . . . . . Kills | -11 -10 -9 -8 -8 -8 -8 -6 -6 ------- Run | Jun Mat Mat Mat Sto Gar Rec Fac Low Combat Hostiles Destroyed 72 | . 5 18 19 2 26 2 . . Guns 67 | . 5 17 15 2 26 2 . . Cannons 5 | . . 1 4 . . . . . Classes Destroyed 10 | . 3 3 3 . 1 . . . Worker 1 | . . . 1 . . . . . Builder 1 | . . . 1 . . . . . Mechanic 1 | . . 1 . . . . . . Watcher 5 | . 1 . 4 . . . . . Swarmer 21 | . 2 . 10 . 9 . . . Grunt 29 | . 3 13 4 1 8 . . . Brawler 2 | . . 1 . . 1 . . . Duelist 3 | . . . 1 . 2 . . . Sentry 15 | . . 4 4 1 4 2 . . Hunter 2 | . . . . . 2 . . . Best Kill Streak 9 | . 2 3 9 2 8 1 . . Combat Bots Only 8 | . 2 3 6 2 8 1 . . Max Kills in Single Turn 2 | . 1 2 2 1 2 1 . . Gunslinging 1 | . . 1 1 . 1 . . . Exploded . | . . . . . . . . . Melee . | . . . . . . . . . Uniques/NPCs Destroyed . | . . . . . . . . . Combat | -11 -10 -9 -8 -8 -8 -8 -6 -6 -------- Run | Jun Mat Mat Mat Sto Gar Rec Fac Low Damage Taken 6024 | . 170 1535 1109 186 682 113 1822 407 Core 1473 | . 32 241 138 . 149 55 685 173 Absorbed by Shields 122 | . . . . . . . 122 . Redirected to Shielding 95 | . . 43 . . . . 52 . Regen/Repaired (Parts) 73 | . . 41 . . . . 32 . Core Remaining (%) 65 | 100 87 39 . . . 37 . . Volleys Fired 224 | . 20 70 62 10 51 7 4 . Largest 2 | . 2 2 2 2 2 2 2 . Hottest 121 | . 60 58 83 121 86 86 86 . Shots Fired 434 | . 40 126 124 20 102 14 8 . Gun 398 | . 40 112 108 18 102 14 4 . Cannon 32 | . . 14 16 2 . . . . Launcher . | . . . . . . . . . Special 4 | . . . . . . . 4 . Kinetic 327 | . 24 126 108 9 51 7 2 . Thermal 91 | . . . 16 11 51 7 6 . Explosive . | . . . . . . . . . Electromagnetic 16 | . 16 . . . . . . . Robot Hit Streak 34 | . 4 8 19 15 34 6 11 . Robot Miss Streak 6 | . 6 4 2 1 4 1 1 . Penetration Max . | . . . . . . . . . Secondary Targets 15 | . . 1 4 1 9 . . . Max Gunslinging Chain 1 | . . 1 1 1 1 . . . Shots Hit Robots 306 | . 13 97 90 15 74 10 7 . Core Hits 131 | . 9 36 37 3 40 4 . 2 Critical Kills 1 | . . . 1 . . . . . Critical Parts Destroyed . | . . . . . . . . . Critical Strikes 4 | . . 1 1 . 2 . . . Burn 2 | . . . . . 2 . . . Destroy 1 | . . . 1 . . . . . Blast 1 | . . 1 . . . . . . Melee Attacks . | . . . . . . . . . Impact . | . . . . . . . . . Slashing . | . . . . . . . . . Piercing . | . . . . . . . . . Sneak Attacks . | . . . . . . . . . Combat Hostiles . | . . . . . . . . . Follow-up Attacks . | . . . . . . . . . Damage Inflicted 5181 | . 177 1461 1504 275 1405 187 148 24 Guns 4549 | . 177 1258 1184 275 1405 187 63 . Cannons 485 | . . 189 296 . . . . . Explosions . | . . . . . . . . . Melee . | . . . . . . . . . Ramming 114 | . . 14 24 . . . 52 24 Kinetic 3541 | . 80 1447 1184 135 605 67 23 . Thermal 1429 | . . . 296 140 800 120 73 . Explosive . | . . . . . . . . . Electromagnetic 97 | . 97 . . . . . . . Impact . | . . . . . . . . . Slashing . | . . . . . . . . . Piercing . | . . . . . . . . . Highest Corruption 22 | . . . . . . . 20 22 Average Corruption 14 | . . . . . . . 5 20 Corruption Purged . | . . . . . . . . . Corruption Blocked . | . . . . . . . . . Effects 17 | . . . . . . . 4 13 Message Errors 6 | . . . . . . . 1 5 Matter Fused 3 | . . . . . . . 2 1 Heat Flow Errors 1 | . . . . . . . . 1 Energy Discharges 1 | . . . . . . . . 1 Data Loss (minor) 2 | . . . . . . . . 2 Alerts 1 | . . . . . . . . 1 Misdirections 3 | . . . . . . . 1 2 Overload Shots . | . . . . . . . . . Overflow Damage 8 | . . . 8 . . . . . Projectiles 8 | . . . 8 . . . . . Explosions . | . . . . . . . . . Melee . | . . . . . . . . . Knockbacks . | . . . . . . . . . Impact . | . . . . . . . . . Kinetic . | . . . . . . . . . Secondary . | . . . . . . . . . Self-Inflicted Damage 33 | . . . . . . . 24 9 Shots . | . . . . . . . . . Rammed 30 | . . 3 3 . . . 9 15 Targets Rammed 30 | . . 3 3 . . . 9 15 Kicked . | . . . . . . . . . Crushed . | . . . . . . . . . Highest Temperature 187 | . 6 14 15 25 65 187 14 74 Average Temperature 23 | . 4 7 6 9 14 81 10 41 Received Heat Transfer 1560 | . 36 621 369 63 198 54 207 12 Siege Activations . | . . . . . . . . . Robots Corrupted . | . . . . . . . . . Combat Hostiles . | . . . . . . . . . Parts Fried . | . . . . . . . . . Impact Corruptions . | . . . . . . . . . Robots Melted . | . . . . . . . . . Combat Hostiles . | . . . . . . . . . Parts Melted . | . . . . . . . . . Heat Transferred 2775 | . . . 481 259 1628 222 185 . Parts Sabotaged . | . . . . . . . . . Parts Stolen . | . . . . . . . . . Parts Stripped . | . . . . . . . . . Power Chain Reactions . | . . . . . . . . . Missiles Intercepted . | . . . . . . . . . Alert | -11 -10 -9 -8 -8 -8 -8 -6 -6 ------- Run | Jun Mat Mat Mat Sto Gar Rec Fac Low Peak Influence 774 | . 157 291 520 163 774 393 188 . Initial 348 | . . . 109 156 79 348 182 . Average 229 | . 85 151 257 63 413 334 146 . Maximum Alert Level 3 | . . 1 2 . 3 1 . . Low Security (%) 59 | 100 100 69 49 100 20 24 100 . Level 1 27 | . . 30 42 . 18 75 . . Level 2 12 | . . . 8 . 53 . . . Level 3 1 | . . . . . 7 . . . Level 4 . | . . . . . . . . . Level 5 . | . . . . . . . . . High Security . | . . . . . . . . . Max Security . | . . . . . . . . . Squads Dispatched 10 | . 2 3 2 . . . 3 . Investigation 4 | . 1 1 1 . . . 1 . Extermination 1 | . . . . . . . 1 . Reinforcement 5 | . 1 2 1 . . . 1 . Assault . | . . . . . . . . . Garrison . | . . . . . . . . . Intercept . | . . . . . . . . . Searches Triggered . | . . . . . . . . . Construction Impeded 1 | . . . . . . . 1 . Haulers Reinforced . | . . . . . . . . . Active Scanning Responses . | . . . . . . . . . Cargo Convoy Interrupts . | . . . . . . . . . Stealth | -11 -10 -9 -8 -8 -8 -8 -6 -6 --------- Run | Jun Mat Mat Mat Sto Gar Rec Fac Low Distress Signals 3 | . . 2 1 . . . . . Communications Jammed . | . . . . . . . . . Distress Signals . | . . . . . . . . . Times Spotted 107 | . 9 25 31 4 28 2 6 2 Peak Tracking Total 6 | . 4 5 6 3 5 1 6 1 Tactical Retreats 5 | . . 1 1 . 2 . . 1 Traps | -11 -10 -9 -8 -8 -8 -8 -6 -6 ------- Run | Jun Mat Mat Mat Sto Gar Rec Fac Low Traps Triggered 5 | . 1 1 . . 3 . . . Indirectly . | . . . . . . . . . Trap Hack Attempts . | . . . . . . . . . Triggered . | . . . . . . . . . Disarmed . | . . . . . . . . . Reprogrammed . | . . . . . . . . . Reused . | . . . . . . . . . Traps Extracted . | . . . . . . . . . Installed . | . . . . . . . . . Triggered . | . . . . . . . . . Machines | -11 -10 -9 -8 -8 -8 -8 -6 -6 ---------- Run | Jun Mat Mat Mat Sto Gar Rec Fac Low Machines Disabled 4 | . . . 1 1 2 . . . Max in Single Turn 1 | . . . 1 1 1 . . . Garrison Relay 2 | . . . . . 2 . . . Machines Repaired . | . . . . . . . . . Machines Sabotaged . | . . . . . . . . . Overloaded Fab Kills . | . . . . . . . . . Hacking | -11 -10 -9 -8 -8 -8 -8 -6 -6 --------- Run | Jun Mat Mat Mat Sto Gar Rec Fac Low Machines Accessed 17 | . 2 4 3 3 . 4 1 . Terminals 13 | . 2 3 3 2 . 3 . . Fabricators . | . . . . . . . . . Repair Stations 2 | . . 1 . . . . 1 . Recycling Units 1 | . . . . . . 1 . . Scanalyzers . | . . . . . . . . . Garrison Access 1 | . . . . 1 . . . . Total Hacks 55 | . 6 15 10 5 . 13 6 . Successful 29 | . 4 5 6 4 . 6 4 . Failed 26 | . 2 10 4 1 . 7 2 . Catastrophic 5 | . 1 1 3 . . . . . Database Lockouts . | . . . . . . . . . Manual . | . . . . . . . . . Terminals 43 | . 6 13 10 4 . 10 . . Fabricators . | . . . . . . . . . Repair Stations 8 | . . 2 . . . . 6 . Recycling Units 3 | . . . . . . 3 . . Scanalyzers . | . . . . . . . . . Garrison Access 1 | . . . . 1 . . . . Terminal Hacks 20 | . 4 3 6 3 . 4 . . Record 1 | . . . . . . 1 . . Branch Access Points 2 | . . . 1 1 . . . . Alert Level 5 | . 1 1 1 1 . 1 . . Unreport Threat 2 | . 1 . . 1 . . . . Locate Traps 1 | . . . 1 . . . . . Dispatch Records 1 | . 1 . . . . . . . Investigation Status 1 | . . 1 . . . . . . Extermination Status 1 | . . . . . . 1 . . Reinforcement Status 1 | . . . 1 . . . . . Zone Layout 5 | . 1 1 2 . . 1 . . Fabricator Hacks . | . . . . . . . . . Repair Station Hacks 6 | . . 2 . . . . 4 . Scan Component 3 | . . 1 . . . . 2 . Repair 2 | . . 1 . . . . 1 . Refit 1 | . . . . . . . 1 . Recycling Unit Hacks 2 | . . . . . . 2 . . Report Inventory 1 | . . . . . . 1 . . Retrieve Components 1 | . . . . . . 1 . . Scanalyzer . | . . . . . . . . . Garrison Access Hacks 1 | . . . . 1 . . . . Unlock Access 1 | . . . . 1 . . . . Unauthorized Hacks . | . . . . . . . . . Terminals . | . . . . . . . . . Fabricators . | . . . . . . . . . Repair Stations . | . . . . . . . . . Recycling Units . | . . . . . . . . . Scanalyzers . | . . . . . . . . . Garrison Access . | . . . . . . . . . Data Cores Recovered . | . . . . . . . . . Used . | . . . . . . . . . Hacking Detections 14 | . . 4 3 2 . 4 1 . Full Trace Events 7 | . . 2 2 . . 2 1 . Feedback Events . | . . . . . . . . . Feedback Blocked . | . . . . . . . . . Robot Schematics Acquired . | . . . . . . . . . Robots Built . | . . . . . . . . . Authchips . | . . . . . . . . . Time . | . . . . . . . . . Total Robot Build Rating . | . . . . . . . . . Part Schematics Acquired . | . . . . . . . . . Parts Built . | . . . . . . . . . Authchips . | . . . . . . . . . Time . | . . . . . . . . . Total Part Build Rating . | . . . . . . . . . Parts Repaired 2 | . . 1 . . . . 1 . Time 58 | . . 26 . . . . 32 . Parts Recycled . | . . . . . . . . . Recycled Matter . | . . . . . . . . . Retrieved Matter . | . . . . . . . . . Retrieved Components 5 | . . . . . . 5 . . Parts Scanalyzed . | . . . . . . . . . Part Schematics Acquired . | . . . . . . . . . Parts Damaged . | . . . . . . . . . Bothacking | -11 -10 -9 -8 -8 -8 -8 -6 -6 ------------ Run | Jun Mat Mat Mat Sto Gar Rec Fac Low Used RIF Installer 1 | . . . . . 1 . . . Robots Hacked . | . . . . . . . . . Non-combat . | . . . . . . . . . Combat . | . . . . . . . . . Robot Hacks Applied . | . . . . . . . . . Relay Couplers Released 7 | . . . . . 7 . . . Machine Destruction 7 | . . . . . 7 . . . Fabnet Peak Effective % . | . . . . . . . . . Robots Rewired . | . . . . . . . . . Allies Hacked . | . . . . . . . . . Hacks Repelled . | . . . . . . . . . Allies | -11 -10 -9 -8 -8 -8 -8 -6 -6 -------- Run | Jun Mat Mat Mat Sto Gar Rec Fac Low Total Allies . | . . . . . . . . . Largest Group . | . . . . . . . . . Highest-Rated Group . | . . . . . . . . . Highest-Rated Ally . | . . . . . . . . . Total Orders . | . . . . . . . . . Ally Attacks . | . . . . . . . . . Total Damage . | . . . . . . . . . Kills . | . . . . . . . . . Allies Corrupted . | . . . . . . . . . Allies Melted . | . . . . . . . . . Intel | -11 -10 -9 -8 -8 -8 -8 -6 -6 ------- Run | Jun Mat Mat Mat Sto Gar Rec Fac Low Robot Analysis Total . | . . . . . . . . . Derelict Logs Recovered 1 | . . . . . . . . 1 Drone Launches . | . . . . . . . . . Drone Recoveries . | . . . . . . . . . Exploration | -11 -10 -9 -8 -8 -8 -8 -6 -6 ------------- Run | Jun Mat Mat Mat Sto Gar Rec Fac Low Turns Passed 4459 | 60 617 794 841 206 826 527 369 219 Spaces Moved 2439 | 42 370 327 374 102 395 309 156 364 Core 128 | 7 . . . . 1 . 61 59 Treads 1626 | . 199 327 374 102 326 288 10 . Legs 295 | 35 171 . . . 68 21 . . Wheels 78 | . . . . . . . 78 . Hover 7 | . . . . . . . 7 . Flight 305 | . . . . . . . . 305 Fastest Speed 40 | 50 120 160 160 165 120 160 50 40 Average Speed 145 | 110 141 162 168 165 171 162 179 49 Slowest Speed 725 | 120 160 240 245 165 600 240 725 250 Overloaded Moves . | . . . . . . . . . Propulsion Burnouts . | . . . . . . . . . Robots Hopped 2 | . . . . . . . . 2 Cave-ins Triggered . | . . . . . . . . . Exploration Rate (%) 32 | 3 39 31 33 19 46 54 3 64 Regions Visited 8 Branch Regions 3 Pre-discovered Areas . | . . . . . . . . . Known Exits Taken 2 | . . . 1 1 . . . . Unknown Exits Taken 5 | 1 1 1 . . . 1 1 . Scrap Searched 3 | . . . . . . . . 3 Spaces Dug . | . . . . . . . . . Terrain Destroyed . | . . . . . . . . . Melee . | . . . . . . . . . Projectile . | . . . . . . . . . AOE . | . . . . . . . . . Terrain Rammed . | . . . . . . . . . Walls Destroyed . | . . . . . . . . . Machines Disabled . | . . . . . . . . . Actions | -11 -10 -9 -8 -8 -8 -8 -6 -6 --------- Run | Jun Mat Mat Mat Sto Gar Rec Fac Low Total 2950 | 55 427 467 467 123 466 324 231 390 Wait 83 | . 2 26 2 8 2 . 43 . Move 2426 | 41 369 326 373 101 393 308 155 360 Hop 2 | . . . . . . . . 2 Pick Up 48 | 9 15 7 6 . 6 1 2 2 Fast Attach 32 | 1 5 7 1 2 3 3 6 4 Attach 23 | 4 1 5 7 . . . 3 3 Detach 1 | . . . . . . . . 1 Swap 23 | . 3 11 6 . 3 . . . Drop 58 | . 12 12 7 2 8 5 9 3 Fire 224 | . 20 70 62 10 51 7 4 . Melee . | . . . . . . . . . Ram 24 | . . . . . . . 9 15 Kick . | . . . . . . . . . Crush 6 | . . 3 3 . . . . . Escape Stasis . | . . . . . . . . . Rewire . | . . . . . . . . . Trap . | . . . . . . . . . Miscellaneous . | . . . . . . . . . Route ------- -11/Junkyard -10/Materials -9/Materials -8/Materials (discovered 2 exits: [*Fac] / *Sto) -8/Storage (discovered 2 exits: Rec / Gar) -8/Garrison -8/Recycling -6/Factory -6/Lower Caves History --------- Turn | Location | Event 12 | -11/Junkyard | Discovered new exit (range 16) 61 | -11/Junkyard | Entered Materials 309 | -10/Materials | Build established: Mutant 658 | -10/Materials | Discovered new exit (range 14) 678 | -10/Materials | Entered another Materials area 678 | -9/Materials | Evolved 2 slots: Utility x2 1074 | -9/Materials | Core integrity fell below 50% 1108 | -9/Materials | Lost 4 parts (1p1n2w) 1241 | -9/Materials | Repaired Hcp. Matter Pod 1417 | -9/Materials | Discovered new exit (range 9) 1472 | -9/Materials | Entered another Materials area 1472 | -8/Materials | Evolved 2 slots: Utility x2 1722 | -8/Materials | Build established: Scavenger-Mutant 1882 | -8/Materials | Identified exit to Storage 2057 | -8/Materials | Discovered new exit (range 14) 2184 | -8/Materials | Build established: Mutant 2313 | -8/Materials | Entered Storage 2318 | -8/Storage | Identified exit to Recycling 2517 | -8/Storage | Identified exit to Garrison 2519 | -8/Storage | Entered Garrison 2656 | -8/Garrison | Triggered checkpoint 2742 | -8/Garrison | Garrison Relay disabled 2756 | -8/Garrison | Triggered checkpoint 2988 | -8/Garrison | Installed Relay Interface Framework 3044 | -8/Garrison | Garrison Relay disabled 3076 | -8/Garrison | Triggered checkpoint 3092 | -8/Garrison | Triggered checkpoint 3100 | -8/Garrison | Triggered checkpoint 3254 | -8/Garrison | Triggered checkpoint 3259 | -8/Garrison | Core integrity fell below 50% 3318 | -8/Garrison | Discovered exit to Recycling (range 14) 3327 | -8/Garrison | Destroyed 8 combat bots 3345 | -8/Garrison | Entered Recycling 3354 | -8/Recycling | Found Scrap Engine 3836 | -8/Recycling | Discovered new exit (range 15) 3872 | -8/Recycling | Entered Factory 3872 | -6/Factory | Evolved 4 slots: Power x1, Propulsion x1, Utility x2 4017 | -6/Factory | Repaired Field Recycling Unit 4181 | -6/Factory | Core integrity fell below 50% 4215 | -6/Factory | System corruption reached 10% 4234 | -6/Factory | Discovered new exit (range 16) 4241 | -6/Factory | Core integrity fell below 20% 4241 | -6/Factory | Entered Lower Caves 4248 | -6/Lower Caves | Attracted the attention of an 0b10 checkpoint 4273 | -6/Lower Caves | Lost 17 parts (3p2n6u6w) 4391 | -6/Lower Caves | Learned Factory terminal intel 4460 | -6/Lower Caves | Destroyed by P-60 Hacker with Shock Rifle Last Messages --------------- 04408_ % :KGU7G5E#CNJ2N<2AL 04423_ Dropped Nuclear Pulse Thruster. 04423_ Slammed into P-60 Hacker. 04428_ Destabilizing: System interference. 04428_ Adv. Weight Redist. System temporarily disabled. 04431_ Slammed into P-60 Hacker. 04435_ System corrupted: IFF burst signal emitted. 04439_ Fusion Compressor destroyed. 04441_ Slammed into P-60 Hacker. 04448_ Adv. Sensor Array destroyed. 04449_ Slammed into P-60 Hacker. 04452_ Field Recycling Unit broken. 04452_ Destabilizing: Short circuit. 04453_ YKMUSZ4QH X>1|IUDH%SBAUS